bitfinex/quotes_SOLUSD_20240605
["timestamp","ask_amount","ask_price","bid_price","bid_amount"]
[1717574962293,12.8331,173.12,173.11,0.4]
[1717574962463,8.5587,173.12,173.11,0.4]
[1717574965189,27.7937,173.12,173.11,0.4]
[1717574965492,12.8331,173.12,173.11,0.4]
[1717574965692,8.5587,173.12,173.11,0.4]
[1717574969076,2.1372,173.12,173.11,0.4]
[1717574970694,8.7864,173.12,173.11,0.4]
[1717574970890,2.1372,173.12,173.11,0.4]
[1717574972382,14.9602,173.16,173.11,0.4]
[1717574972383,4.2736,173.16,173.11,0.4]
[1717574972564,2.1368,173.16,173.11,0.4]
[1717574972772,2.1368,173.16,173.11,2.5372]
[1717574972992,2.1368,173.16,173.12,2.1372]
[1717574973183,2.1366,173.17,173.13,2.137]
[1717574973377,2.1366,173.17,173.12,2.1371]
[1717574973782,2.1368,173.16,173.12,2.1371]
[1717574975792,18.79789266,173.23,173.11,0.4]
[1717574975793,2.1362,173.21,173.16,2.1366]
[1717574976294,2.1362,173.21,173.17,2.1366]
[1717574976607,2.1362,173.21,173.16,2.1366]
[1717574976811,2.1362,173.21,173.14,4.2739]
[1717574976812,2.1362,173.21,173.17,2.1365]
[1717574977302,2.1362,173.21,173.17,23.9424]
[1717574977473,2.1358,173.24,173.17,21.8059]
[1717574977674,2.1359,173.23,173.18,2.1364]
[1717574977913,2.1364,173.19,173.14,2.1369]
[1717574978088,2.1365,173.18,173.13,2.137]
[1717574978280,2.1365,173.18,173.14,2.1369]
[1717574979810,2.1372,173.12,173.11,0.4]
[1717574980883,17.1765,173.12,173.11,0.4]
[1717574981082,30.6176,173.12,173.0,2.1387]
[1717574981390,2.1383,173.04,172.99,2.1387]
[1717574981589,10.6889,173.08,173.0,2.1387]
[1717574981590,2.1381,173.05,173.0,2.1387]
[1717574981799,6.413,173.09,173.02,2.6273452]
[1717574982002,2.1379,173.07,173.02,2.6273452]
[1717574982214,2.1379,173.07,173.03,2.1383]
[1717574982902,4.275,173.1,173.02,0.4889452]
[1717574983090,2.1375,173.1,173.05,2.138]
[1717574983294,2.1376,173.09,173.04,2.1381]
[1717574983609,38.6088,173.12,173.05,2.138]
[1717574983610,2.1375,173.1,173.05,2.138]
[1717574983793,6.4111,173.14,173.03,10.6914]
[1717574983794,2.1374,173.11,173.03,10.6914]
[1717574984189,2.1374,173.1,173.06,2.1379]
[1717574984504,2.1374,173.11,173.06,2.1379]
[1717574984708,2.1375,173.1,173.06,2.1379]
[1717574985510,2.1375,173.1,173.05,2.138]
[1717574985717,21.65,173.15,173.08,2.1377]
[1717574985891,2.1371,173.13,173.06,0.17]
[1717574986090,2.1371,173.13,173.08,2.1377]
[1717574986600,2.1372,173.12,173.07,2.1378]
[1717574987008,2.1371,173.13,173.08,2.1377]
[1717574987490,2.1372,173.12,173.08,2.1377]
[1717574987689,2.1371,173.13,173.08,2.1377]
[1717574988136,6.2246,173.13,173.04,20.0]
[1717574988293,2.1378,173.07,173.02,0.4889452]
[1717574988610,2.138,173.06,173.02,0.4889452]
[1717574988809,2.1379,173.07,173.02,2.6273452]
[1717574989013,2.1381,173.05,173.02,0.4889452]
[1717574989195,2.138,173.06,173.02,0.4889452]
[1717574989813,2.1381,173.05,173.02,0.4889452]
[1717574990322,2.138,173.06,173.02,0.4889452]
[1717574990492,2.138,173.06,173.02,2.6273452]
[1717574991708,2.1379,173.07,173.02,2.6273452]
[1717574992116,2.1379,173.07,173.03,2.1383]
[1717574993328,2.138,173.06,173.02,2.6273452]
[1717574993501,19.238,173.1,173.02,2.6273452]
[1717574993502,2.1379,173.07,173.02,2.6273452]
[1717574993991,2.138,173.06,173.02,2.6273452]
[1717574994194,19.238,173.1,173.02,2.6273452]
[1717574994195,2.1382,173.04,173.02,0.4889452]
[1717574994894,8.6364,173.05,173.02,0.4889452]
[1717574995130,8.6365,173.04,173.02,0.4889452]
[1717574996529,2.1382,173.04,173.02,0.4889452]
[1717574996905,2.1381,173.05,173.02,0.4889452]
[1717574999635,10.774,173.07,173.02,0.4889452]
[1717574999819,2.1381,173.05,173.02,0.4889452]
[1717575001255,2.138,173.06,173.02,0.4889452]
[1717575003005,2.1381,173.05,173.02,0.4889452]
[1717575004409,2.138,173.06,173.02,0.4889452]
[1717575005241,2.1381,173.05,173.02,0.4889452]
[1717575005830,2.138,173.06,173.02,0.4889452]
[1717575007442,4.2755,173.08,173.02,0.4889452]
[1717575007443,2.1381,173.05,173.02,0.4889452]
[1717575011114,2.1382,173.04,173.02,0.4889452]
[1717575011522,2.1383,173.03,173.02,0.4889452]
[1717575012045,8.5524,173.06,173.02,0.4889452]
[1717575012046,4.276,173.06,173.02,0.4889452]
[1717575012224,2.1383,173.04,173.02,0.4889452]
[1717575012421,2.1381,173.05,173.02,0.4889452]
[1717575012646,2.1381,173.05,173.02,0.84839862]
[1717575012830,2.1381,173.05,173.02,0.84825319]
[1717575013828,2.1381,173.05,173.02,0.4889452]
[1717575015852,2.1382,173.04,173.02,0.4889452]
[1717575016030,4.2757,173.07,173.02,0.4889452]
[1717575016031,2.1381,173.05,173.02,0.4889452]
[1717575016959,4.2753,173.09,173.03,6.1033]
[1717575017123,8.5499,173.11,173.03,6.1033]
[1717575017467,2.1376,173.09,173.05,8.2413]
[1717575017838,41.86037624,173.14,173.06,2.1378]
[1717575017839,4.2744,173.13,173.06,2.1378]
[1717575018033,2.1375,173.1,173.06,18.3178]
[1717575018328,2.1375,173.1,173.06,24.8258]
[1717575018547,2.1374,173.11,173.07,24.8258]
[1717575019060,4.275,173.1,173.03,2.1382]
[1717575019244,2.1378,173.08,173.04,2.1382]
[1717575019445,14.9619,173.11,173.03,21.5418]
[1717575019446,6.4122,173.11,173.03,21.5418]
[1717575019760,2.1381,173.05,173.02,0.4889452]
[1717575020137,2.138,173.06,173.02,2.6273452]
[1717575020659,12.8266,173.08,173.02,2.6273452]
[1717575020660,2.1381,173.05,173.02,0.4889452]
[1717575021373,2.1383,173.03,173.02,0.4889452]
[1717575021568,21.3834,173.03,173.02,0.4889452]
[1717575021933,14.9684,173.03,173.02,0.4889452]
[1717575022164,6.415,173.03,173.02,0.4889452]
[1717575022470,2.1383,173.03,173.02,0.4889452]
[1717575023769,6.415,173.03,173.02,0.4889452]
[1717575026663,2.1383,173.03,173.02,0.4889452]
[1717575027442,2.1382,173.04,173.02,0.4889452]
[1717575027662,2.1383,173.03,173.02,0.4889452]
[1717575028742,2.1383,173.04,173.02,0.4889452]
[1717575029076,2.1381,173.05,173.02,0.4889452]
[1717575029447,2.1382,173.04,173.02,0.4889452]
[1717575029863,2.1383,173.03,173.02,0.4889452]
[1717575030667,2.1383,173.04,173.02,0.4889452]
[1717575031468,2.1383,173.03,173.02,0.4889452]
[1717575031964,27.9095,173.03,173.02,0.4889452]
[1717575033238,27.9095,173.03,173.01,0.4]
[1717575033239,29.9387,173.02,173.01,0.4]
[1717575033431,13.79427087,173.02,172.91,0.4]
[1717575033633,2.1397,172.92,172.91,0.4]
[1717575037581,2.1397,172.92,172.84,1.1108511]
[1717575037582,6.4203,172.89,172.84,1.1108511]
[1717575037746,2.1404,172.86,172.84,1.1108511]
[1717575037949,2.1405,172.85,172.84,1.1108511]
[1717575038553,2.1405,172.86,172.84,1.1108511]
[1717575039169,2.1405,172.85,172.84,1.1108511]
[1717575039474,2.1404,172.86,172.84,1.1108511]
[1717575039660,2.1403,172.87,172.84,1.1108511]
[1717575040168,2.1404,172.86,172.84,1.1108511]
[1717575040874,2.1403,172.87,172.84,1.1108511]
[1717575041352,2.1402,172.88,172.84,1.1108511]
[1717575041555,2.1401,172.89,172.84,3.2514511]
[1717575041769,2.1401,172.89,172.84,25.4575511]
[1717575042775,2.1399,172.9,172.86,6.3116]
[1717575043180,2.1396,172.93,172.88,2.1401]
[1717575043364,2.1398,172.91,172.88,6.3116]
[1717575044266,2.1397,172.92,172.88,8.4518]
[1717575044470,2.1396,172.93,172.88,25.0448]
[1717575044853,2.1397,172.92,172.88,22.9046]
[1717575045675,2.1396,172.93,172.9,22.7108]
[1717575045861,2.1395,172.94,172.9,22.7108]
[1717575046379,4.2787,172.95,172.88,2.1401]
[1717575046577,2.1397,172.92,172.87,2.1402]
[1717575046878,4.2791,172.94,172.88,21.2079]
[1717575047077,2.1397,172.92,172.88,21.2079]
[1717575047261,2.1396,172.93,172.88,23.348]
[1717575047465,2.1397,172.92,172.88,21.2079]
[1717575047776,2.1398,172.92,172.88,21.2079]
[1717575047966,19.2544,172.95,172.88,23.348]
[1717575048284,2.1396,172.93,172.88,23.348]
[1717575049460,2.1396,172.93,172.89,2.14]
[1717575049658,2.1396,172.93,172.88,23.348]
[1717575049861,2.1395,172.94,172.89,25.2547]
[1717575050376,2.1396,172.93,172.89,23.1147]
[1717575050790,2.1396,172.93,172.89,25.2547]
[1717575050957,2.1395,172.94,172.89,25.2547]
[1717575051372,10.6962,172.96,172.89,25.2547]
[1717575051678,2.1396,172.93,172.89,25.2547]
[1717575051884,2.1395,172.94,172.89,25.2547]
[1717575052391,2.1396,172.93,172.89,25.2547]
[1717575052763,2.1396,172.93,172.89,23.1147]
[1717575053181,2.1396,172.93,172.89,25.2547]
[1717575053364,2.1396,172.93,172.89,6.4613]
[1717575054063,2.1396,172.93,172.89,24.9568]
[1717575054278,2.1396,172.93,172.89,22.8168]
[1717575055085,2.1396,172.93,172.89,24.9568]
[1717575055271,4.2787,172.95,172.89,22.8168]
[1717575055473,2.1396,172.93,172.89,22.8168]
[1717575055677,2.1397,172.92,172.89,22.8168]
[1717575055866,10.6968,172.95,172.88,2.1401]
[1717575056065,2.1396,172.93,172.88,2.1401]
[1717575056266,2.1397,172.92,172.88,2.1401]
[1717575056470,2.1397,172.92,172.87,25.2354]
[1717575057294,2.1397,172.92,172.88,2.1402]
[1717575057666,2.1397,172.92,172.88,8.4026]
[1717575057970,2.1397,172.92,172.88,6.2624]
[1717575058504,2.1398,172.91,172.87,16.4506]
[1717575059379,2.1397,172.92,172.87,18.5908]
[1717575060187,8.5577,172.95,172.88,2.1401]
[1717575060394,2.1396,172.93,172.88,2.1401]
[1717575060694,2.1396,172.93,172.89,2.14]
[1717575061586,2.1396,172.93,172.88,2.1401]
[1717575061992,7.23,172.92,172.89,2.14]
[1717575062204,2.1396,172.93,172.89,2.14]
[1717575062486,4.2788,172.95,172.89,2.14]
[1717575062694,4.2788,172.95,172.87,4.2806]
[1717575062695,2.1394,172.94,172.88,26.6451]
[1717575062896,2.1394,172.94,172.89,2.14]
[1717575063066,7.23,172.92,172.9,2.1399]
[1717575063274,7.23,172.92,172.89,2.14]
[1717575063900,2.1396,172.93,172.89,2.14]
[1717575064103,7.23,172.92,172.89,2.14]
[1717575065206,2.1396,172.93,172.89,2.14]
[1717575065412,2.1396,172.93,172.88,24.5049]
[1717575065707,7.23,172.92,172.89,2.14]
[1717575066010,7.23,172.92,172.89,1.94]
[1717575066518,7.23,172.91,172.88,24.5049]
[1717575067206,7.23,172.91,172.89,2.14]
[1717575067507,7.23,172.91,172.88,22.3648]
[1717575067807,7.23,172.91,172.88,24.5049]
[1717575069391,7.23,172.91,172.88,17.8456]
[1717575069708,7.23,172.91,172.88,24.3468]
[1717575070286,7.23,172.91,172.87,2.1402]
[1717575071310,7.23,172.91,172.88,8.744]
[1717575071694,2.1394,172.95,172.9,6.5871]
[1717575071896,7.23,172.94,172.91,2.1397]
[1717575074596,7.23,172.94,172.9,24.778]
[1717575074804,9.3694,172.94,172.9,24.778]
[1717575075128,7.23,172.93,172.9,22.6381]
[1717575075285,2.1394,172.95,172.9,24.778]
[1717575075487,2.1394,172.95,172.91,2.1398]
[1717575075790,9.3693,172.95,172.91,25.4161]
[1717575077198,9.3693,172.95,172.9,2.1398]
[1717575078087,2.1395,172.94,172.89,8.1868]
[1717575078313,7.23,172.93,172.89,8.1868]
[1717575078613,9.3695,172.93,172.89,8.1868]
[1717575078811,9.3696,172.93,172.89,8.1868]
[1717575079023,7.23,172.93,172.9,2.1399]
[1717575079233,9.3695,172.93,172.89,8.1868]
[1717575079799,7.23,172.93,172.9,2.1399]
[1717575080001,7.23,172.93,172.89,8.1868]
[1717575080605,2.1394,172.95,172.9,24.5158]
[1717575080809,2.1394,172.95,172.9,24.5159]
[1717575081030,7.23,172.94,172.9,24.5159]
[1717575081325,9.3694,172.94,172.9,24.5159]
[1717575081525,9.3694,172.94,172.84,121.1108511]
[1717575081526,2.14,172.9,172.84,5.3921511]
[1717575081715,14.9775,172.93,172.85,2.1405]
[1717575081716,9.3701,172.89,172.85,2.1405]
[1717575082338,7.23,172.89,172.86,2.1404]
[1717575086511,21.753078,172.91,172.87,2.1403]
[1717575086911,7.23,172.89,172.87,2.1403]
[1717575087112,7.23,172.9,172.87,2.1403]
[1717575087540,9.3699,172.9,172.86,2.1403]
[1717575088850,7.23,172.89,172.86,2.1403]
[1717575089014,9.3699,172.9,172.86,2.1403]
[1717575089537,7.23,172.9,172.86,2.1403]
[1717575089737,7.23,172.89,172.86,2.1403]
[1717575091536,7.23,172.9,172.86,2.1403]
[1717575091951,21.753078,172.91,172.87,2.1402]
[1717575092241,7.23,172.9,172.87,2.1402]
[1717575093327,2.1399,172.9,172.86,2.1403]
[1717575093631,9.3699,172.9,172.86,2.1403]
[1717575095854,2.1399,172.9,172.86,2.1403]
[1717575096034,21.752978,172.91,172.87,2.1403]
[1717575096238,7.23,172.9,172.87,2.1403]
[1717575097335,21.752978,172.91,172.87,2.1403]
[1717575097540,28.982978,172.91,172.87,2.1403]
[1717575097953,7.23,172.9,172.87,2.1403]
[1717575098434,9.3699,172.9,172.86,8.5081]
[1717575098927,2.1399,172.9,172.86,8.5081]
[1717575099126,9.3699,172.9,172.86,8.5081]
[1717575102037,7.23,172.9,172.86,8.5081]
[1717575102234,9.3699,172.9,172.86,8.5081]
[1717575103432,21.753078,172.91,172.87,2.1403]
[1717575103632,7.23,172.9,172.87,2.1403]
[1717575104357,19.613178,172.91,172.88,2.1401]
[1717575104531,26.843178,172.91,172.87,2.1402]
[1717575104737,19.613178,172.91,172.89,2.14]
[1717575104934,19.613178,172.91,172.9,2.1399]
[1717575105135,19.613178,172.91,172.9,28.8583]
[1717575105646,19.613178,172.91,172.9,24.5784]
[1717575106026,19.613178,172.91,172.9,28.8583]
[1717575106446,19.613178,172.91,172.9,36.0883]
[1717575106651,19.613178,172.91,172.9,51.2379]
[1717575111999,19.613178,172.91,172.9,44.0079]
[1717575112154,19.613178,172.91,172.9,51.2379]
[1717575112949,19.613178,172.91,172.9,44.0079]
[1717575113158,19.613178,172.91,172.9,51.2379]
[1717575113863,19.613178,172.91,172.9,2.1399]
[1717575114062,19.613178,172.91,172.89,2.14]
[1717575114275,19.613178,172.91,172.9,2.1399]
[1717575115393,19.613178,172.91,172.88,2.1401]
[1717575115550,26.843178,172.91,172.88,2.1401]
[1717575115753,19.613178,172.91,172.88,2.1401]
[1717575116497,19.613178,172.91,172.89,2.14]
[1717575117499,19.613178,172.91,172.87,4.2805]
[1717575117500,19.613178,172.91,172.9,2.1399]
[1717575117716,19.613178,172.91,172.89,2.14]
[1717575119696,26.843178,172.91,172.88,2.1401]
[1717575119895,19.613178,172.91,172.88,2.1401]
[1717575120246,26.843178,172.91,172.88,2.1401]
[1717575121006,26.843178,172.91,172.88,2.1402]
[1717575121421,26.843178,172.91,172.87,2.1402]
[1717575121595,7.23,172.9,172.85,19.2646]
[1717575121797,9.3699,172.9,172.84,381.4108511]
[1717575121999,7.23,172.89,172.86,2.1404]
[1717575122523,7.23,172.9,172.87,2.1403]
[1717575124226,19.613178,172.91,172.88,2.1401]
[1717575124733,26.843178,172.91,172.88,2.1401]
[1717575125225,19.613178,172.91,172.87,2.1402]
[1717575125433,26.843178,172.91,172.88,2.1401]
[1717575125731,28.982978,172.91,172.87,2.1402]
[1717575125930,7.23,172.9,172.87,2.1402]
[1717575126840,7.23,172.9,172.88,2.1401]
[1717575127131,26.843178,172.91,172.88,2.1401]
[1717575127435,19.613178,172.91,172.88,2.1401]
[1717575127642,28.982978,172.91,172.87,2.1402]
[1717575127837,7.23,172.9,172.87,2.1402]
[1717575131235,9.3704,172.87,172.84,3.2515511]
[1717575131526,7.23,172.87,172.84,3.2515511]
[1717575131746,9.3703,172.87,172.84,1.1108511]
[1717575132238,9.3703,172.87,172.84,3.2514511]
[1717575133444,2.1401,172.89,172.85,2.1405]
[1717575133823,2.1401,172.89,172.86,2.1404]
[1717575134120,2.1402,172.88,172.84,1.1108511]
[1717575134439,7.23,172.87,172.84,3.2514511]
[1717575135829,9.3703,172.87,172.84,3.2514511]
[1717575136026,7.23,172.86,172.84,3.2515511]
[1717575136420,7.23,172.87,172.84,3.2514511]
[1717575136946,9.3704,172.87,172.84,1.1108511]
[1717575137338,9.3704,172.87,172.84,3.2514511]
[1717575137526,7.23,172.87,172.84,3.2514511]
[1717575137847,9.3703,172.87,172.84,1.1108511]
[1717575138231,7.23,172.86,172.84,1.1108511]
[1717575139055,2.1402,172.88,172.84,3.2514511]
[1717575139225,9.3702,172.88,172.84,3.2514511]
[1717575139425,2.1402,172.88,172.84,3.2514511]
[1717575139625,7.23,172.87,172.84,3.2514511]
[1717575140531,9.3702,172.88,172.84,3.2514511]
[1717575140956,9.3702,172.88,172.84,1.1108511]
[1717575141158,9.3702,172.88,172.84,3.2514511]
[1717575141463,2.1402,172.88,172.84,3.2514511]
[1717575141633,2.1403,172.87,172.84,1.1108511]
[1717575141946,9.3703,172.87,172.84,1.1108511]
[1717575144937,7.23,172.87,172.84,1.1108511]
[1717575145243,9.3703,172.87,172.84,1.1108511]
[1717575145860,2.1403,172.87,172.84,1.1108511]
[1717575146063,7.23,172.87,172.84,3.2514511]
[1717575146251,9.3705,172.85,172.84,1.1108511]
[1717575149633,2.1405,172.86,172.84,1.1108511]
[1717575150060,7.23,172.85,172.84,1.1108511]
[1717575150554,2.1404,172.87,172.84,1.1108511]
[1717575150853,7.23,172.86,172.84,1.1108511]
[1717575152555,9.3704,172.86,172.84,1.1108511]
[1717575152851,7.23,172.86,172.84,1.1108511]
[1717575153056,9.3704,172.87,172.84,1.1108511]
[1717575153740,2.1404,172.86,172.84,1.1108511]
[1717575154295,9.3704,172.87,172.84,1.1108511]
[1717575154595,2.1404,172.86,172.84,1.1108511]
[1717575154755,9.3704,172.87,172.84,1.1108511]
[1717575155186,26.032978,172.91,172.85,2.1405]
[1717575155387,7.23,172.89,172.85,2.1405]
[1717575155687,2.1401,172.89,172.85,2.1405]
[1717575156683,2.1402,172.88,172.85,2.1405]
[1717575157190,2.1401,172.89,172.85,2.1405]
[1717575157985,2.1402,172.88,172.85,2.1405]
[1717575158177,2.1401,172.89,172.85,2.1405]
[1717575159862,2.1401,172.89,172.86,2.1404]
[1717575160880,2.1401,172.89,172.85,2.1405]
[1717575161466,2.1402,172.88,172.84,25.9769511]
[1717575161769,9.3702,172.88,172.84,25.9769511]
[1717575162200,9.3702,172.88,172.84,9.5586511]
[1717575162404,2.1403,172.87,172.84,1.1108511]
[1717575162703,7.23,172.88,172.84,3.2514511]
[1717575162870,2.1404,172.87,172.84,1.1108511]
[1717575163498,2.1404,172.87,172.84,3.2515511]
[1717575164172,7.23,172.85,172.84,1.1108511]
[1717575165001,9.3705,172.85,172.84,1.1108511]
[1717575165874,7.23,172.85,172.84,1.1108511]
[1717575166391,9.3705,172.85,172.84,1.1108511]
[1717575170473,2.1405,172.85,172.84,1.1108511]
[1717575170678,9.3705,172.85,172.84,1.1108511]
[1717575172499,2.1405,172.85,172.84,1.1108511]
[1717575175795,28.6356,172.85,172.84,1.1108511]
[1717575176407,28.8056,172.85,172.84,1.1108511]
[1717575178393,6.4216,172.85,172.84,1.1108511]
[1717575178593,13.6516,172.85,172.84,1.1108511]
[1717575180414,6.4216,172.85,172.84,1.1108511]
[1717575180714,13.6516,172.85,172.84,1.1108511]
[1717575185518,20.0733,172.85,172.84,1.1108511]
[1717575188122,12.8433,172.85,172.84,1.1108511]
[1717575188308,20.0733,172.85,172.84,1.1108511]
[1717575188515,21.4056,172.85,172.84,1.1108511]
[1717575188814,28.6356,172.85,172.84,1.1108511]
[1717575190116,22.2139,172.85,172.84,1.1108511]
[1717575190537,6.4216,172.85,172.84,1.1108511]
[1717575190735,9.3705,172.85,172.84,1.1108511]
[1717575191642,28.6356,172.85,172.84,1.1108511]
[1717575195728,13.6516,172.85,172.84,1.1108511]
[1717575197057,20.0733,172.85,172.84,1.1108511]
[1717575199758,13.6516,172.85,172.84,1.1108511]
[1717575201050,20.0733,172.85,172.84,1.1108511]
[1717575202937,6.4216,172.85,172.84,1.1108511]
[1717575203139,13.6516,172.85,172.84,1.1108511]
[1717575203553,20.0733,172.85,172.84,1.1108511]
[1717575205656,28.6356,172.85,172.84,1.1108511]
[1717575208063,28.8056,172.85,172.84,1.1108511]
[1717575208773,21.5756,172.85,172.84,1.1108511]
[1717575208978,28.8056,172.85,172.84,1.1108511]
[1717575218094,2.1409,172.82,172.81,0.4]
[1717575218269,20.0756,172.82,172.81,0.4]
[1717575218469,13.6528,172.82,172.81,0.4]
[1717575220786,20.0756,172.82,172.81,0.4]
[1717575220989,13.6528,172.82,172.81,0.4]
[1717575222877,9.3709,172.82,172.81,0.4]
[1717575223391,2.1409,172.82,172.81,0.4]
[1717575225880,6.4228,172.82,172.81,0.4]
[1717575226086,42.5084,172.82,172.81,0.4]
[1717575226273,2.1418,172.75,172.74,0.03600424]
[1717575226472,9.3718,172.75,172.74,0.03600424]
[1717575227597,2.1417,172.76,172.74,0.03600424]
[1717575227901,9.3717,172.76,172.74,22.99660424]
[1717575228604,2.1417,172.76,172.74,22.99660424]
[1717575228780,7.23,172.75,172.74,22.99660424]
[1717575230199,7.23,172.75,172.74,0.03600424]
[1717575230200,13.6554,172.75,172.74,0.03600424]
[1717575230404,9.3718,172.75,172.74,0.03600424]
[1717575231015,2.1418,172.75,172.74,0.03600424]
[1717575231220,9.3718,172.75,172.74,0.03600424]
[1717575233505,2.1418,172.75,172.74,0.03600424]
[1717575233732,9.3718,172.75,172.74,0.03600424]
[1717575239627,20.0808,172.75,172.74,0.03600424]
[1717575240400,13.6554,172.75,172.74,0.03600424]
[1717575240943,9.3718,172.75,172.74,0.03600424]
[1717575241932,2.1418,172.75,172.74,0.03600424]
[1717575242327,9.3718,172.75,172.74,0.03600424]
[1717575242533,7.23,172.75,172.74,0.03600424]
[1717575242829,28.648,172.75,172.74,0.03600424]
[1717575243207,21.418,172.75,172.74,0.03600424]
[1717575243411,28.648,172.75,172.74,0.03600424]
[1717575243615,2.1418,172.75,172.74,0.03600424]
[1717575243922,9.3718,172.75,172.74,0.03600424]
[1717575245009,6.4254,172.75,172.74,0.03600424]
[1717575245212,28.648,172.75,172.74,0.03600424]
[1717575246628,35.2863,172.75,172.74,0.03600424]
[1717575246803,35.6263,172.75,172.74,0.03600424]
[1717575249137,2.1418,172.75,172.74,0.03600424]
[1717575249509,9.3718,172.75,172.74,0.03600424]
[1717575250935,2.1417,172.76,172.74,0.03600424]
[1717575251116,2.1415,172.78,172.74,2.17790424]
[1717575251316,2.1415,172.78,172.75,6.0804]
[1717575251533,7.23,172.77,172.75,6.0804]
[1717575251844,2.1415,172.77,172.75,21.6289]
[1717575252014,7.23,172.79,172.77,22.1255]
[1717575252539,2.1415,172.77,172.74,22.16150424]
[1717575252754,9.3715,172.77,172.74,22.16150424]
[1717575253313,7.23,172.77,172.74,22.16150424]
[1717575253550,7.23,172.76,172.74,22.16150424]
[1717575254215,9.3717,172.76,172.74,22.16150424]
[1717575254427,7.23,172.76,172.74,24.30340424]
[1717575254648,9.3716,172.77,172.74,24.30340424]
[1717575257247,2.1415,172.78,172.74,24.30340424]
[1717575257441,9.3715,172.78,172.75,2.1418]
[1717575257650,9.3715,172.78,172.74,24.30330424]
[1717575259645,9.3715,172.78,172.75,2.1418]
[1717575260945,9.3715,172.78,172.75,8.4594]
[1717575261119,2.1413,172.79,172.75,23.5944]
[1717575261320,9.3714,172.78,172.75,2.1418]
[1717575261519,7.23,172.77,172.74,6.35360424]
[1717575261724,7.23,172.77,172.74,21.48860424]
[1717575261936,7.23,172.77,172.75,2.1418]
[1717575262154,2.1415,172.78,172.76,21.7978]
[1717575262327,7.23,172.78,172.76,21.7978]
[1717575262733,9.3714,172.78,172.76,21.7978]
[1717575263045,7.23,172.78,172.76,6.5747]
[1717575263626,9.3715,172.78,172.76,6.5747]
[1717575265930,9.3715,172.78,172.74,24.66930424]
[1717575266943,9.3715,172.78,172.75,2.1418]
[1717575267320,2.1415,172.77,172.74,6.29140424]
[1717575267524,4.2827,172.79,172.74,0.03600424]
[1717575267525,7.23,172.76,172.74,0.03600424]
[1717575268440,7.23,172.76,172.74,2.17790424]
[1717575268823,2.1416,172.77,172.74,2.17790424]
[1717575269022,7.23,172.76,172.74,2.17790424]
[1717575269251,7.23,172.76,172.75,2.1418]
[1717575269429,7.23,172.77,172.75,2.1418]
[1717575270136,7.23,172.77,172.74,2.17780424]
[1717575270930,9.3716,172.77,172.74,2.17780424]
[1717575271143,7.23,172.76,172.74,2.17780424]
[1717575276664,7.23,172.76,172.75,2.1418]
[1717575276961,7.23,172.77,172.75,2.1418]
[1717575277169,7.23,172.77,172.74,2.17780424]
[1717575278865,9.3715,172.77,172.74,2.17780424]
[1717575280366,10.706,172.8,172.75,2.1417]
[1717575280367,4.2824,172.8,172.75,2.1417]
[1717575280672,2.1415,172.78,172.75,2.1417]
[1717575280867,9.3715,172.78,172.75,2.1417]
[1717575281471,2.1415,172.78,172.75,2.1417]
[1717575281648,7.23,172.77,172.75,2.1417]
[1717575282160,2.1415,172.78,172.75,2.1417]
[1717575282374,2.1414,172.79,172.76,2.1416]
[1717575282670,7.23,172.78,172.76,2.1416]
[1717575282872,2.1414,172.79,172.75,2.1417]
[1717575283171,9.3714,172.78,172.75,2.1417]
[1717575283868,2.1414,172.79,172.75,25.2907]
[1717575284043,7.23,172.78,172.75,25.2907]